{"text_format":"3","workbook":"xlsx","n_sheets":4,"sheets":["Rezumat","Active","Pasive","Categorii"],"not_rendered":{"defined_names":10},"read":"whole","date_system":"1900"}

{"sheet":"Rezumat","index":0,"n_rows":12,"n_cols":4,"rows_kept":12}
[null,"Bilanț contabil"]
[null,null,{"$f":"\"FY-\"&YEAR(TODAY())-1","v":"FY-2016"},{"$f":"\"FY-\"&YEAR(TODAY())","v":"FY-2017"}]
[null,"Tip de active","Anul anterior","Anul curent"]
[null,"Active curente",{"$f":"SUMIFS(Active[Anul anterior],Active[Tip de active],Tablou_de_bord[[#This Row],[Tip de active]])+SUMIFS(Pasive[Anul anterior],Pasive[Tip de pasive],Tablou_de_bord[[#This Row],[Tip de active]])","v":600},{"$f":"SUMIFS(Active[Anul curent],Active[Tip de active],Tablou_de_bord[[#This Row],[Tip de active]])+SUMIFS(Pasive[Anul curent],Pasive[Tip de pasive],Tablou_de_bord[[#This Row],[Tip de active]])","v":600}]
[null,"Active fixe",{"$f":"SUMIFS(Active[Anul anterior],Active[Tip de active],Tablou_de_bord[[#This Row],[Tip de active]])+SUMIFS(Pasive[Anul anterior],Pasive[Tip de pasive],Tablou_de_bord[[#This Row],[Tip de active]])","v":{"v":-100,"d":"-100 "}},{"$f":"SUMIFS(Active[Anul curent],Active[Tip de active],Tablou_de_bord[[#This Row],[Tip de active]])+SUMIFS(Pasive[Anul curent],Pasive[Tip de pasive],Tablou_de_bord[[#This Row],[Tip de active]])","v":{"v":-85,"d":"-85 "}}]
[null,"Alte active",{"$f":"SUMIFS(Active[Anul anterior],Active[Tip de active],Tablou_de_bord[[#This Row],[Tip de active]])+SUMIFS(Pasive[Anul anterior],Pasive[Tip de pasive],Tablou_de_bord[[#This Row],[Tip de active]])","v":0},{"$f":"SUMIFS(Active[Anul curent],Active[Tip de active],Tablou_de_bord[[#This Row],[Tip de active]])+SUMIFS(Pasive[Anul curent],Pasive[Tip de pasive],Tablou_de_bord[[#This Row],[Tip de active]])","v":0}]
[null,"Pasive curente",{"$f":"SUMIFS(Active[Anul anterior],Active[Tip de active],Tablou_de_bord[[#This Row],[Tip de active]])+SUMIFS(Pasive[Anul anterior],Pasive[Tip de pasive],Tablou_de_bord[[#This Row],[Tip de active]])","v":500},{"$f":"SUMIFS(Active[Anul curent],Active[Tip de active],Tablou_de_bord[[#This Row],[Tip de active]])+SUMIFS(Pasive[Anul curent],Pasive[Tip de pasive],Tablou_de_bord[[#This Row],[Tip de active]])","v":350}]
[null,"Pasive pe termen lung",{"$f":"SUMIFS(Active[Anul anterior],Active[Tip de active],Tablou_de_bord[[#This Row],[Tip de active]])+SUMIFS(Pasive[Anul anterior],Pasive[Tip de pasive],Tablou_de_bord[[#This Row],[Tip de active]])","v":0},{"$f":"SUMIFS(Active[Anul curent],Active[Tip de active],Tablou_de_bord[[#This Row],[Tip de active]])+SUMIFS(Pasive[Anul curent],Pasive[Tip de pasive],Tablou_de_bord[[#This Row],[Tip de active]])","v":0}]
[null,"Capital proprietar",{"$f":"SUMIFS(Active[Anul anterior],Active[Tip de active],Tablou_de_bord[[#This Row],[Tip de active]])+SUMIFS(Pasive[Anul anterior],Pasive[Tip de pasive],Tablou_de_bord[[#This Row],[Tip de active]])","v":0},{"$f":"SUMIFS(Active[Anul curent],Active[Tip de active],Tablou_de_bord[[#This Row],[Tip de active]])+SUMIFS(Pasive[Anul curent],Pasive[Tip de pasive],Tablou_de_bord[[#This Row],[Tip de active]])","v":350}]
[null,"Total active",{"$f":"Active[[#Totals],[Anul anterior]]","v":500},{"$f":"Active[[#Totals],[Anul curent]]","v":515}]
[null,"Total pasive și capital propriu acționari",{"$f":"Pasive[[#Totals],[Anul anterior]]","v":500},{"$f":"Pasive[[#Totals],[Anul curent]]","v":700}]
[null,"Sold",{"$f":"C10-C11","v":0},{"$f":"D10-D11","v":{"v":-185,"d":"-185 "}}]

{"sheet":"Active","index":1,"n_rows":14,"n_cols":5,"rows_kept":14}
[null,"Active"]
[{"$nulls":3},{"$f":"AN_FINANC","v":"FY-2016"},{"$f":"AN_FINANC_2","v":"FY-2017"}]
[null,"Tip de active","Descriere","Anul anterior","Anul curent"]
[null,"Active curente","Numerar",600,600]
[null,"Active curente","Investiții"]
[null,"Active curente","Stocuri"]
[null,"Active curente","Conturi de creanțe"]
[null,"Active curente","Cheltuieli plătite în avans"]
[null,"Active fixe","Proprietăți și echipamente"]
[null,"Active fixe","Îmbunătățiri ale proprietăților închiriate"]
[null,"Active fixe","Capital propriu și alte investiții"]
[null,"Active fixe","Minus amortizare acumulată (valoare negativă)",{"v":-100,"d":"-100 "},{"v":-85,"d":"-85 "}]
[null,"Alte active","Donații"]
[null,"Total active",null,{"$f":"SUBTOTAL(109,Active[Anul anterior])","v":500},{"$f":"SUBTOTAL(109,Active[Anul curent])","v":515}]

{"sheet":"Pasive","index":2,"n_rows":12,"n_cols":5,"rows_kept":12}
[null,"Pasive"]
[{"$nulls":3},{"$f":"AN_FINANC","v":"FY-2016"},{"$f":"AN_FINANC_2","v":"FY-2017"}]
[null,"Tip de pasive","Descriere","Anul anterior","Anul curent"]
[null,"Pasive curente","Creanțe",null,350]
[null,"Pasive curente","Salarii acumulate"]
[null,"Pasive curente","Compensații acumulate",500]
[null,"Pasive curente","Impozite plătibile"]
[null,"Pasive curente","Venituri viitoare"]
[null,"Pasive pe termen lung","Ipoteci plătibile"]
[null,"Capital proprietar","Capital de investiții",null,350]
[null,"Capital proprietar","Câștiguri reținute acumulate"]
[null,"Total pasive și capital propriu acționari",null,{"$f":"SUBTOTAL(109,Pasive[Anul anterior])","v":500},{"$f":"SUBTOTAL(109,Pasive[Anul curent])","v":700}]

{"sheet":"Categorii","index":3,"n_rows":9,"n_cols":2,"rows_kept":9}
[null,"Categorii"]
[]
[null,"Categorii"]
[null,"Active curente"]
[null,"Active fixe"]
[null,"Alte active"]
[null,"Pasive curente"]
[null,"Pasive pe termen lung"]
[null,"Capital proprietar"]